Workbook

Sheet Лист2

Sheet Лист3

Sheet Лист6
B2: 24 | C2: 82.2 | D2: =-0.6618311*B2^6 + 101.2753*B2^5 - 6455.544*B2^4 + 219404.3*B2^3 - 4193374*B2^2 + 42733060*B2 - 181399400 -> 334.6238461 | E2: =C2-D2 -> -252.4238461
B3: 24.01 | C3: 82.52 | D3: =-0.001151164*B3^6+0.1875985*B3^5-12.75601*B3^4+463.1089*B3^3-9461.66*B3^2+103087.7*B3-467769.7 -> 84.14778411 | E3: -1.627784107
B4: 24.02 | C4: 82.84 | D4: 84.44395282 | E4: -1.603952819
B5: 24.03 | C5: 83.15 | D5: 84.74055095 | E5: -1.590550953
B6: 24.04 | C6: 83.47 | D6: 85.03758335 | E6: -1.567583355
B7: 24.05 | C7: 83.79 | D7: 85.33505482 | E7: -1.545054815
B8: 24.06 | C8: 84.1 | D8: 85.63297009 | E8: -1.532970086
B9: 24.07 | C9: 84.42 | D9: 85.93133387 | E9: -1.51133387
B10: 24.08 | C10: 84.74 | D10: 86.23015083 | E10: -1.490150833
B11: 24.09 | C11: 85.06 | D11: 86.52942559 | E11: -1.46942559
B12: 24.1 | C12: 85.38 | D12: 86.82916271 | E12: -1.449162714
B13: 24.11 | C13: 85.69 | D13: 87.12936674 | E13: -1.439366739
B14: 24.12 | C14: 86.01 | D14: 87.43004215 | E14: -1.420042153
B15: 24.13 | C15: 86.33 | D15: 87.7311934 | E15: -1.401193397
B16: 24.14 | C16: 86.65 | D16: 88.03282488 | E16: -1.382824877
B17: 24.15 | C17: 86.96 | D17: 88.33494095 | E17: -1.37494095
B18: 24.16 | C18: 87.28 | D18: 88.63754594 | E18: -1.357545937
B19: 24.17 | C19: 87.6 | D19: 88.94064411 | E19: -1.340644113
B20: 24.18 | C20: 87.92 | D20: 89.24423971 | E20: -1.32423971
B21: 24.19 | C21: 88.23 | D21: 89.54833693 | E21: -1.318336926
B22: 24.2 | C22: 88.55 | D22: 89.85293991 | E22: -1.302939909
B23: 24.21 | C23: 88.87 | D23: 90.15805277 | E23: -1.288052774
B24: 24.22 | C24: 89.19 | D24: 90.46367959 | E24: -1.273679588
B25: 24.23 | C25: 89.5 | D25: 90.76982438 | E25: -1.269824384
B26: 24.24 | C26: 89.82 | D26: 91.07649115 | E26: -1.256491153
B27: 24.25 | C27: 90.14 | D27: 91.38368384 | E27: -1.24368384
B28: 24.26 | C28: 90.46 | D28: 91.69140636 | E28: -1.231406362
B29: 24.27 | C29: 90.77 | D29: 91.99966259 | E29: -1.229662588
B30: 24.28 | C30: 91.09 | D30: 92.30845635 | E30: -1.218456351
B31: 24.29 | C31: 91.41 | D31: 92.61779144 | E31: -1.207791443
B32: 24.3 | C32: 91.72 | D32: 92.92767162 | E32: -1.20767162
B33: 24.31 | C33: 92.04 | D33: 93.2381006 | E33: -1.198100599
B34: 24.32 | C34: 92.36 | D34: 93.54908206 | E34: -1.189082058
B35: 24.33 | C35: 92.68 | D35: 93.86061964 | E35: -1.180619636
B36: 24.34 | C36: 92.99 | D36: 94.17271693 | E36: -1.182716934
B37: 24.35 | C37: 93.31 | D37: 94.48537752 | E37: -1.175377522
B38: 24.36 | C38: 93.63 | D38: 94.79860492 | E38: -1.168604924
B39: 24.37 | C39: 93.95 | D39: 95.11240263 | E39: -1.162402631
B40: 24.38 | C40: 94.26 | D40: 95.4267741 | E40: -1.166774101
B41: 24.39 | C41: 94.58 | D41: 95.74172275 | E41: -1.161722747
B42: 24.4 | C42: 94.9 | D42: 96.05725195 | E42: -1.157251954
B43: 24.41 | C43: 95.22 | D43: 96.37336506 | E43: -1.153365062
B44: 24.42 | C44: 95.53 | D44: 96.69006539 | E44: -1.160065386
B45: 24.43 | C45: 95.85 | D45: 97.0073562 | E45: -1.157356197
B46: 24.44 | C46: 96.17 | D46: 97.32524073 | E46: -1.155240734
B47: 24.45 | C47: 96.49 | D47: 97.6437222 | E47: -1.1537222
B48: 24.46 | C48: 96.8 | D48: 97.96280376 | E48: -1.162803762
B49: 24.47 | C49: 97.12 | D49: 98.28248856 | E49: -1.162488557
B50: 24.48 | C50: 97.44 | D50: 98.60277968 | E50: -1.16277968
B51: 24.49 | C51: 97.76 | D51: 98.9236802 | E51: -1.163680197
B52: 24.5 | C52: 98.07 | D52: 99.24519314 | E52: -1.175193141
B53: 24.51 | C53: 98.39 | D53: 99.56732151 | E53: -1.177321507
B54: 24.52 | C54: 98.71 | D54: 99.89006826 | E54: -1.18006826
B55: 24.53 | C55: 99.03 | D55: 100.2134363 | E55: -1.183436327
B56: 24.54 | C56: 99.34 | D56: 100.5374286 | E56: -1.197428606
B57: 24.55 | C57: 99.66 | D57: 100.862048 | E57: -1.202047963
B58: 24.56 | C58: 99.98 | D58: 101.1872972 | E58: -1.207297227
B59: 24.57 | C59: 100.3 | D59: 101.5131792 | E59: -1.213179198
B60: 24.58 | C60: 100.61 | D60: 101.8396966 | E60: -1.22969664
B61: 24.59 | C61: 100.93 | D61: 102.1668523 | E61: -1.23685229
B62: 24.6 | C62: 101.25 | D62: 102.4946488 | E62: -1.244648849
B63: 24.61 | C63: 101.57 | D63: 102.823089 | E63: -1.253088987
B64: 24.62 | C64: 101.88 | D64: 103.1521753 | E64: -1.272175345
B65: 24.63 | C65: 102.2 | D65: 103.4819105 | E65: -1.281910531
B66: 24.64 | C66: 102.52 | D66: 103.8122971 | E66: =C66-D66 -> -1.292297121
B67: 24.65 | C67: 102.84 | D67: =-0.001151164*B67^6+0.1875985*B67^5-12.75601*B67^4+463.1089*B67^3-9461.66*B67^2+103087.7*B67-467769.7 -> 104.1433377 | E67: -1.303337664
B68: 24.66 | C68: 103.15 | D68: 104.4750347 | E68: -1.325034673
B69: 24.67 | C69: 103.47 | D69: 104.8073906 | E69: -1.337390635
B70: 24.68 | C70: 103.79 | D70: 105.140408 | E70: -1.350408002
B71: 24.69 | C71: 104.11 | D71: 105.4740892 | E71: -1.364089201
B72: 24.7 | C72: 104.42 | D72: 105.8084366 | E72: -1.388436629
B73: 24.71 | C73: 104.74 | D73: 106.1434527 | E73: -1.403452652
B74: 24.72 | C74: 105.06 | D74: 106.4791396 | E74: -1.419139604
B75: 24.73 | C75: 105.38 | D75: 106.8154998 | E75: -1.435499794
B76: 24.74 | C76: 105.69 | D76: 107.1525355 | E76: -1.462535501
B77: 24.75 | C77: 106.01 | D77: 107.490249 | E77: -1.480248973
B78: 24.76 | C78: 106.33 | D78: 107.8286424 | E78: -1.498642432
B79: 24.77 | C79: 106.65 | D79: 108.1677181 | E79: -1.51771807
B80: 24.78 | C80: 106.96 | D80: 108.5074781 | E80: -1.547478055
B81: 24.79 | C81: 107.28 | D81: 108.8479245 | E81: -1.56792452
B82: 24.8 | C82: 107.6 | D82: 109.1890596 | E82: -1.589059575
B83: 24.81 | C83: 107.92 | D83: 109.5308853 | E83: -1.6108853
B84: 24.82 | C84: 108.23 | D84: 109.8734038 | E84: -1.643403754
B85: 24.83 | C85: 108.55 | D85: 110.216617 | E85: -1.666616959
B86: 24.84 | C86: 108.87 | D86: 110.5605269 | E86: -1.690526916
B87: 24.85 | C87: 109.19 | D87: 110.9051356 | E87: -1.715135599
B88: 24.86 | C88: 109.5 | D88: 111.250445 | E88: -1.750444955
B89: 24.87 | C89: 109.82 | D89: 111.5964569 | E89: -1.776456904
B90: 24.88 | C90: 110.14 | D90: 111.9431733 | E90: -1.803173338
B91: 24.89 | C91: 110.46 | D91: 112.2905961 | E91: -1.830596127
B92: 24.9 | C92: 110.77 | D92: 112.6387271 | E92: -1.868727114
B93: 24.91 | C93: 111.09 | D93: 112.9875681 | E93: -1.897568112
B94: 24.92 | C94: 111.41 | D94: 113.3371209 | E94: -1.927120917
B95: 24.93 | C95: 111.73 | D95: 113.6873873 | E95: -1.957387292
B96: 24.94 | C96: 112.04 | D96: 114.038369 | E96: -1.998368977
B97: 24.95 | C97: 112.36 | D97: 114.3900677 | E97: -2.03006769
B98: 24.96 | C98: 112.68 | D98: 114.7424851 | E98: -2.062485121
B99: 24.97 | C99: 113 | D99: 115.0956229 | E99: -2.095622936
B100: 24.98 | C100: 113.31 | D100: 115.4494828 | E100: -2.13948278
B101: 24.99 | C101: 113.63 | D101: 115.8040663 | E101: -2.174066271
B102: 25 | C102: 113.95 | D102: 116.159375 | E102: -2.209375
B103: 25.01 | C103: 114.34 | D103: 116.5154105 | E103: -2.175410541
B104: 25.02 | C104: 114.74 | D104: 116.8721744 | E104: -2.132174438
B105: 25.03 | C105: 115.13 | D105: 117.2296682 | E105: -2.099668216
B106: 25.04 | C106: 115.52 | D106: 117.5878934 | E106: -2.067893375
B107: 25.05 | C107: 115.92 | D107: 117.9468514 | E107: -2.026851393
B108: 25.06 | C108: 116.31 | D108: 118.3065437 | E108: -1.996543723
B109: 25.07 | C109: 116.7 | D109: 118.6669718 | E109: -1.966971797
B110: 25.08 | C110: 117.1 | D110: 119.028137 | E110: -1.928137025
B111: 25.09 | C111: 117.49 | D111: 119.3900408 | E111: -1.900040791
B112: 25.1 | C112: 117.88 | D112: 119.7526845 | E112: -1.872684463
B113: 25.11 | C113: 118.28 | D113: 120.1160694 | E113: -1.836069379
B114: 25.12 | C114: 118.67 | D114: 120.4801969 | E114: -1.810196863
B115: 25.13 | C115: 119.07 | D115: 120.8450682 | E115: -1.775068212
B116: 25.14 | C116: 119.46 | D116: 121.2106847 | E116: -1.750684705
B117: 25.15 | C117: 119.85 | D117: 121.5770476 | E117: -1.727047597
B118: 25.16 | C118: 120.25 | D118: 121.9441581 | E118: -1.694158123
B119: 25.17 | C119: 120.64 | D119: 122.3120175 | E119: -1.672017496
B120: 25.18 | C120: 121.03 | D120: 122.6806269 | E120: -1.650626908
B121: 25.19 | C121: 121.43 | D121: 123.0499875 | E121: -1.619987536
B122: 25.2 | C122: 121.82 | D122: 123.4201005 | E122: -1.600100527
B123: 25.21 | C123: 122.21 | D123: 123.790967 | E123: -1.580967012
B124: 25.22 | C124: 122.61 | D124: 124.1625881 | E124: -1.552588107
B125: 25.23 | C125: 123 | D125: 124.5349649 | E125: -1.534964898
B126: 25.24 | C126: 123.39 | D126: 124.9080985 | E126: -1.518098459
B127: 25.25 | C127: 123.79 | D127: 125.2819898 | E127: -1.49198984
B128: 25.26 | C128: 124.18 | D128: 125.6566401 | E128: -1.476640074
B129: 25.27 | C129: 124.57 | D129: 126.0320502 | E129: -1.462050175
B130: 25.28 | C130: 124.97 | D130: 126.4082211 | E130: =C130-D130 -> -1.438221136
B131: 25.29 | C131: 125.36 | D131: =-0.001151164*B131^6+0.1875985*B131^5-12.75601*B131^4+463.1089*B131^3-9461.66*B131^2+103087.7*B131-467769.7 -> 126.7851539 | E131: -1.425153929
B132: 25.3 | C132: 125.75 | D132: 127.1628495 | E132: -1.41284951
B133: 25.31 | C133: 126.15 | D133: 127.5413088 | E133: -1.391308817
B134: 25.32 | C134: 126.54 | D134: 127.9205328 | E134: -1.380532767
B135: 25.33 | C135: 126.94 | D135: 128.3005223 | E135: -1.360522263
B136: 25.34 | C136: 127.33 | D136: 128.6812782 | E136: -1.351278181
B137: 25.35 | C137: 127.72 | D137: 129.0628014 | E137: -1.342801387
B138: 25.36 | C138: 128.12 | D138: 129.4450927 | E138: -1.325092725
B139: 25.37 | C139: 128.51 | D139: 129.828153 | E139: -1.318153024
B140: 25.38 | C140: 128.9 | D140: 130.2119831 | E140: -1.311983093
B141: 25.39 | C141: 129.3 | D141: 130.5965837 | E141: -1.296583724
B142: 25.4 | C142: 129.69 | D142: 130.9819557 | E142: -1.291955689
B143: 25.41 | C143: 130.08 | D143: 131.3680998 | E143: -1.288099751
B144: 25.42 | C144: 130.48 | D144: 131.7550166 | E144: -1.275016646
B145: 25.43 | C145: 130.87 | D145: 132.1427071 | E145: -1.272707096
B146: 25.44 | C146: 131.26 | D146: 132.5311718 | E146: -1.271171813
B147: 25.45 | C147: 131.66 | D147: 132.9204115 | E147: -1.260411481
B148: 25.46 | C148: 132.05 | D148: 133.3104268 | E148: -1.26042678
B149: 25.47 | C149: 132.44 | D149: 133.7012184 | E149: -1.261218361
B150: 25.48 | C150: 132.84 | D150: 134.0927869 | E150: -1.252786867
B151: 25.49 | C151: 133.23 | D151: 134.4851329 | E151: -1.255132923
B152: 25.5 | C152: 133.62 | D152: 134.8782571 | E152: -1.258257134
B153: 25.51 | C153: 134.02 | D153: 135.2721601 | E153: -1.252160098
B154: 25.52 | C154: 134.41 | D154: 135.6668424 | E154: -1.256842391
B155: 25.53 | C155: 134.81 | D155: 136.0623046 | E155: -1.252304572
B156: 25.54 | C156: 135.2 | D156: 136.4585472 | E156: -1.25854719
B157: 25.55 | C157: 135.59 | D157: 136.8555708 | E157: -1.265570775
B158: 25.56 | C158: 135.99 | D158: 137.2533758 | E158: -1.26337584
B159: 25.57 | C159: 136.38 | D159: 137.6519629 | E159: -1.271962889
B160: 25.58 | C160: 136.77 | D160: 138.0513324 | E160: -1.281332407
B161: 25.59 | C161: 137.17 | D161: 138.4514849 | E161: -1.281484865
B162: 25.6 | C162: 137.56 | D162: 138.8524207 | E162: -1.292420718
B163: 25.61 | C163: 137.95 | D163: 139.2541404 | E163: -1.30414041
B164: 25.62 | C164: 138.35 | D164: 139.6566444 | E164: -1.306644368
B165: 25.63 | C165: 138.74 | D165: 140.059933 | E165: -1.319933005
B166: 25.64 | C166: 139.13 | D166: 140.4640067 | E166: -1.334006722
B167: 25.65 | C167: 139.53 | D167: 140.8688659 | E167: -1.338865902
B168: 25.66 | C168: 139.92 | D168: 141.2745109 | E168: -1.354510919
B169: 25.67 | C169: 140.31 | D169: 141.6809421 | E169: -1.370942129
B170: 25.68 | C170: 140.71 | D170: 142.0881599 | E170: -1.378159873
B171: 25.69 | C171: 141.1 | D171: 142.4961645 | E171: -1.39616449
B172: 25.7 | C172: 141.49 | D172: 142.9049563 | E172: -1.414956291
B173: 25.71 | C173: 141.89 | D173: 143.3145356 | E173: -1.424535582
B174: 25.72 | C174: 142.28 | D174: 143.7249027 | E174: -1.444902652
B175: 25.73 | C175: 142.68 | D175: 144.1360578 | E175: -1.456057784
B176: 25.74 | C176: 143.07 | D176: 144.5480012 | E176: -1.47800124
B177: 25.75 | C177: 143.46 | D177: 144.9607333 | E177: -1.50073327
B178: 25.76 | C178: 143.86 | D178: 145.3742541 | E178: -1.514254118
B179: 25.77 | C179: 144.25 | D179: 145.788564 | E179: -1.538564008
B180: 25.78 | C180: 144.64 | D180: 146.2036632 | E180: -1.563663161
B181: 25.79 | C181: 145.04 | D181: 146.6195518 | E181: -1.579551774
B182: 25.8 | C182: 145.43 | D182: 147.03623 | E182: -1.606230038
B183: 25.81 | C183: 145.82 | D183: 147.4536981 | E183: -1.633698131
B184: 25.82 | C184: 146.22 | D184: 147.8719562 | E184: -1.651956224
B185: 25.83 | C185: 146.61 | D185: 148.2910045 | E185: -1.681004466
B186: 25.84 | C186: 147 | D186: 148.710843 | E186: -1.710843006
B187: 25.85 | C187: 147.4 | D187: 149.131472 | E187: -1.731471971
B188: 25.86 | C188: 147.79 | D188: 149.5528915 | E188: -1.762891483
B189: 25.87 | C189: 148.18 | D189: 149.9751016 | E189: -1.795101649
B190: 25.88 | C190: 148.58 | D190: 150.3981026 | E190: -1.818102566
B191: 25.89 | C191: 148.97 | D191: 150.8218943 | E191: -1.851894322
B192: 25.9 | C192: 149.36 | D192: 151.246477 | E192: -1.886476993
B193: 25.91 | C193: 149.76 | D193: 151.6718506 | E193: -1.91185064
B194: 25.92 | C194: 150.15 | D194: 152.0980153 | E194: =C194-D194 -> -1.948015317
B195: 25.93 | C195: 150.55 | D195: =-0.001151164*B195^6+0.1875985*B195^5-12.75601*B195^4+463.1089*B195^3-9461.66*B195^2+103087.7*B195-467769.7 -> 152.5249711 | E195: -1.974971068
B196: 25.94 | C196: 150.94 | D196: 152.9527179 | E196: -2.012717923
B197: 25.95 | C197: 151.33 | D197: 153.3812559 | E197: -2.051255905
B198: 25.96 | C198: 151.73 | D198: 153.810585 | E198: -2.080585025
B199: 25.97 | C199: 152.12 | D199: 154.2407053 | E199: -2.120705281
B200: 25.98 | C200: 152.51 | D200: 154.6716167 | E200: -2.161616669
B201: 25.99 | C201: 152.91 | D201: 155.1033192 | E201: -2.193319164
... 401 more rows
